bitfinex-derivatives/quotes_BTCF0:USTF0_20210109
["timestamp","ask_amount","ask_price","bid_price","bid_amount"]
[1610218185805,0.59162385,40555.0,40554.0,0.00023897]
[1610218186302,0.59162385,40555.0,40553.0,0.00023897]
[1610218186505,3.61,40554.0,40541.0,3.4702]
[1610218187104,3.61,40554.0,40542.0,0.01811141]
[1610218187706,0.13632608,40543.0,40542.0,0.01811141]
[1610218189506,0.13632608,40543.0,40542.0,0.00023899]
[1610218190007,0.13632608,40543.0,40542.0,0.01811238]
[1610218190207,0.13632608,40543.0,40542.0,0.00023899]
[1610218190408,0.13632608,40543.0,40542.0,3.01953899]
[1610218190607,0.13632608,40543.0,40542.0,3.03741255]
[1610218191206,0.13632608,40543.0,40542.0,3.01953899]
[1610218191609,0.13632608,40543.0,40542.0,3.019539]
[1610218198114,0.13632608,40543.0,40542.0,3.03741176]
[1610218201319,0.13632608,40543.0,40542.0,3.019539]
[1610218204521,0.13632608,40543.0,40542.0,3.03741367]
[1610218205321,0.13632608,40543.0,40542.0,3.019539]
[1610218206422,0.13632608,40543.0,40542.0,3.03741373]
[1610218206623,0.13632608,40543.0,40542.0,3.019539]
[1610218206825,0.13632608,40543.0,40542.0,0.01814016]
[1610218207424,0.13632608,40543.0,40541.0,0.01813989]
[1610218207626,0.13632608,40543.0,40542.0,0.01813959]
[1610218207826,0.13632608,40543.0,40542.0,0.54023959]
[1610218213934,0.13632608,40543.0,40542.0,0.57974113]
[1610218216240,0.45529777,40555.0,40542.0,0.57974113]
[1610218216641,0.45529777,40555.0,40543.0,0.01816017]
[1610218217440,0.45529777,40555.0,40543.0,0.05766157]
[1610218217842,0.45529777,40555.0,40553.0,0.13632608]
[1610218218042,0.45529777,40555.0,40554.0,0.5128]
[1610218218242,0.45529777,40555.0,40554.0,0.51303914]
[1610218219043,0.45529777,40555.0,40554.0,0.53095877]
[1610218219745,0.59162385,40555.0,40554.0,0.53095877]
[1610218220943,0.59162385,40555.0,40554.0,0.51303914]
[1610218221143,0.59162385,40555.0,40554.0,0.53095819]
[1610218222145,0.45529777,40555.0,40554.0,0.53095819]
[1610218224751,0.45529777,40555.0,40554.0,0.51303914]
[1610218226752,0.45529777,40555.0,40554.0,0.53095389]
[1610218228254,0.45529777,40555.0,40554.0,0.51303914]
[1610218231057,0.45529777,40555.0,40554.0,0.53095242]
[1610218250577,0.45529777,40555.0,40554.0,0.57041661]
[1610218309053,0.45529777,40555.0,40554.0,3.1248839]
[1610218309351,0.45529777,40555.0,40554.0,0.57041661]
[1610218312356,0.45529777,40555.0,40554.0,2.07041661]
[1610218313358,0.45529777,40555.0,40554.0,0.57041661]
[1610218319965,0.00380697,40555.0,40554.0,0.57041661]
[1610218320168,0.00380697,40555.0,40554.0,3.27223613]
[1610218322568,0.00380697,40555.0,40554.0,0.57041661]
[1610218327877,0.00380697,40555.0,40554.0,2.07041661]
[1610218328078,0.00380697,40555.0,40554.0,4.77043954]
[1610218328480,0.13632608,40586.0,40554.0,4.77043954]
[1610218328679,0.13632608,40586.0,40585.0,0.13632608]
[1610218328879,0.13632608,40586.0,40585.0,0.57036444]
[1610218340492,0.13632608,40586.0,40585.0,0.13656444]
[1610218340799,0.13632608,40586.0,40585.0,3.31426444]
[1610218345495,0.13632608,40586.0,40585.0,3.33226212]
[1610218376744,0.43755556,40586.0,40585.0,3.33226212]
[1610218387158,0.43755556,40586.0,40585.0,0.15456212]
[1610218387356,0.43755556,40586.0,40585.0,0.01823604]
[1610218387959,0.43755556,40586.0,40585.0,0.00023836]
[1610218388160,3.82695556,40586.0,40585.0,0.00023836]
[1610218388358,5.32695556,40586.0,40585.0,0.00023836]
[1610218388558,5.32695556,40586.0,40571.0,0.10861]
[1610218388559,5.32695556,40586.0,40575.0,0.01823871]
[1610218388758,5.32695556,40586.0,40585.0,0.0002393]
[1610218388960,5.32695556,40586.0,40576.0,0.00023932]
[1610218389160,0.13632608,40577.0,40576.0,0.00023932]
[1610218389361,0.64342608,40577.0,40568.0,3.0404]
[1610218389561,0.64342608,40577.0,40576.0,0.00023936]
[1610218389760,0.64342608,40577.0,40569.0,0.00023936]
[1610218389961,1.74772608,40577.0,40569.0,0.00023936]
[1610218390160,1.74772608,40577.0,40543.0,2.55450878]
[1610218390161,2.7727,40571.0,40558.0,3.5584]
[1610218390362,2.7727,40571.0,40570.0,0.00023939]
[1610218390563,2.7727,40571.0,40559.0,0.00023939]
[1610218390964,2.7727,40571.0,40570.0,0.00023939]
[1610218391162,2.90902608,40571.0,40560.0,0.00023939]
[1610218391362,2.90902608,40571.0,40570.0,0.00023939]
[1610218391563,4.40902608,40571.0,40570.0,0.00023939]
[1610218391762,4.40902608,40571.0,40561.0,0.00023939]
[1610218391962,4.40902608,40571.0,40532.0,2.7000257]
[1610218391963,1.63632608,40571.0,40537.0,2.55019716]
[1610218392162,3.7623,40562.0,40548.0,3.1321]
[1610218392763,3.7623,40562.0,40549.0,0.00023944]
[1610218393065,0.13632608,40550.0,40549.0,0.00023944]
[1610218393865,0.13632608,40550.0,40548.0,3.1321]
[1610218398968,0.13632608,40550.0,40535.0,0.13632608]
[1610218399167,0.11559,40568.0,40521.0,2.53873296]
[1610218399168,0.11559,40568.0,40545.0,0.13632608]
[1610218399368,0.2893,40576.0,40545.0,0.21320608]
[1610218399569,0.2893,40576.0,40555.0,2.7805]
[1610218401172,0.13632608,40556.0,40555.0,2.7805]
[1610218403474,0.13632608,40556.0,40551.0,0.13632608]
[1610218404276,0.13632608,40556.0,40551.0,0.69432608]
[1610218405378,0.13632608,40556.0,40551.0,0.13632608]
[1610218405779,0.13632608,40556.0,40554.0,3.3274]
[1610218405978,0.13632608,40556.0,40554.0,3.42983]
[1610218406877,0.13632608,40556.0,40554.0,0.10243]
[1610218407078,3.9599,40583.0,40555.0,3.9166]
[1610218407278,0.2718,40582.0,40564.0,0.13632608]
[1610218407478,0.2718,40582.0,40569.0,3.9722]
[1610218408479,0.2718,40582.0,40565.0,0.0828]
[1610218408880,0.2718,40582.0,40566.0,0.00024093]
[1610218409082,0.2718,40582.0,40565.0,0.0828]
[1610218409280,0.13632608,40566.0,40565.0,0.0828]
[1610218411385,0.13632608,40566.0,40565.0,0.08304094]
[1610218419697,0.2953,40583.0,40565.0,3.45154094]
[1610218420097,0.2953,40583.0,40566.0,0.00024092]
[1610218421300,0.2953,40583.0,40579.0,0.13632608]
[1610218421498,3.7249,40595.0,40581.0,0.4682]
[1610218423401,0.13632608,40582.0,40581.0,0.4682]
[1610218423802,0.13632608,40582.0,40581.0,0.46844089]
[1610218428508,0.13632608,40582.0,40581.0,0.46844086]
[1610218443825,0.13632608,40582.0,40581.0,0.48693796]
[1610218451333,0.13632608,40594.0,40581.0,0.48693796]
[1610218451732,0.13632608,40594.0,40581.0,0.01873796]
[1610218452135,0.13632608,40594.0,40593.0,3.9618]
[1610218452534,0.13632608,40594.0,40593.0,3.96204082]
[1610218452934,0.2747,40625.0,40593.0,3.96204082]
[1610218453334,0.00030132,40624.0,40605.0,0.13632608]
[1610218453535,0.12039132,40624.0,40616.0,2.9355]
[1610218453936,0.0003013,40623.0,40606.0,0.00023951]
[1610218454135,0.0003013,40623.0,40617.0,0.00023948]
[1610218454535,0.0003013,40623.0,40621.0,4.0036]
[1610218454739,0.12009,40624.0,40618.0,0.00023945]
[1610218454937,0.12009,40624.0,40623.0,3.1752]
[1610218455236,0.12009,40624.0,40623.0,3.17543945]
[1610218455437,0.25641608,40624.0,40623.0,3.17543945]
[1610218455837,0.25641608,40624.0,40623.0,3.1752]
[1610218456738,0.25641608,40624.0,40597.0,0.10957]
[1610218457340,0.12009,40624.0,40612.0,0.13632608]
[1610218457538,0.12009,40624.0,40613.0,0.3951]
[1610218457939,0.12009,40624.0,40614.0,0.00023943]
[1610218458640,3.5472,40632.0,40614.0,0.00023943]
[1610218459040,0.00306477,40648.0,40614.0,0.00023943]
[1610218459241,0.00030121,40631.0,40620.0,3.4635]
[1610218459442,0.13632608,40621.0,40620.0,3.4635]
[1610218474757,0.11354,40640.0,40620.0,3.4635]
[1610218474957,0.2897,40647.0,40620.0,3.57359]
[1610218475158,0.2897,40647.0,40620.0,0.11009]
[1610218475358,0.2897,40647.0,40631.0,4.0867]
[1610218475560,0.13632608,40632.0,40630.0,0.13632608]
[1610218476962,0.13632608,40632.0,40631.0,3.491]
[1610218482168,0.13632608,40632.0,40631.0,3.49123938]
[1610218484268,0.21002608,40632.0,40631.0,3.49123938]
[1610218485072,0.13632608,40632.0,40631.0,3.49123938]
[1610218485971,0.21022608,40632.0,40631.0,3.49123938]
[1610218486172,0.13632608,40632.0,40631.0,3.49123938]
[1610218487374,0.21042608,40632.0,40631.0,3.49123938]
[1610218487574,0.21042608,40632.0,40631.0,0.00023938]
[1610218487773,2.99832608,40632.0,40631.0,0.00023938]
[1610218487975,2.92422608,40632.0,40631.0,0.00023938]
[1610218488173,2.92422608,40632.0,40622.0,0.00023938]
[1610218488576,2.92422608,40632.0,40631.0,0.00023938]
[1610218488774,0.13632608,40632.0,40623.0,0.00023938]
[1610218488974,0.21082608,40632.0,40622.0,0.0002394]
[1610218489177,3.1928,40630.0,40622.0,0.0002394]
[1610218489376,3.1928,40630.0,40624.0,0.0002394]
[1610218489576,0.13632608,40625.0,40623.0,0.0002394]
[1610218489777,0.13632608,40625.0,40617.0,3.5525]
[1610218489977,0.13632608,40625.0,40624.0,0.0002394]
[1610218490378,0.13632608,40625.0,40618.0,0.0002394]
[1610218490579,0.13632608,40625.0,40624.0,0.00023942]
[1610218490980,3.11052608,40625.0,40619.0,0.00023942]
[1610218491178,0.13632608,40625.0,40624.0,0.00023942]
[1610218491380,0.13632608,40625.0,40620.0,0.00023942]
[1610218491579,0.13632608,40625.0,40624.0,0.00023942]
[1610218491979,0.13632608,40625.0,40621.0,0.00023942]
[1610218492180,0.13632608,40625.0,40624.0,0.00023942]
[1610218492380,0.13632608,40625.0,40622.0,0.00023942]
[1610218492679,0.13632608,40625.0,40624.0,0.00023942]
[1610218493080,0.13632608,40625.0,40623.0,0.00023942]
[1610218493280,0.13632608,40625.0,40624.0,0.00023942]
[1610218493880,0.13632608,40625.0,40614.0,0.00023942]
[1610218494083,0.13632608,40625.0,40624.0,0.00023942]
[1610218494281,0.13632608,40625.0,40614.0,0.00023942]
[1610218494583,0.13632608,40625.0,40624.0,0.00023942]
[1610218494782,0.13632608,40625.0,40615.0,0.00023943]
[1610218495181,0.13632608,40625.0,40624.0,0.00023943]
[1610218495381,0.13632608,40625.0,40616.0,0.00023943]
[1610218495582,0.13632608,40617.0,40613.0,3.5222]
[1610218495985,0.13632608,40617.0,40616.0,0.00023943]
[1610218496183,0.13632608,40617.0,40614.0,0.00023943]
[1610218496382,0.13632608,40617.0,40616.0,0.00023943]
[1610218496583,0.13632608,40617.0,40615.0,0.00023943]
[1610218496982,0.13632608,40617.0,40611.0,0.11765]
[1610218496983,0.13632608,40617.0,40612.0,0.00023943]
[1610218497183,0.13632608,40617.0,40616.0,0.00023943]
[1610218497382,0.13632608,40617.0,40613.0,0.00023943]
[1610218497583,3.33132608,40617.0,40613.0,0.00023943]
[1610218497785,3.33132608,40617.0,40612.0,0.00023943]
[1610218497983,3.33132608,40617.0,40614.0,0.00023943]
[1610218498183,3.33132608,40617.0,40613.0,0.00023943]
[1610218498585,3.33132608,40617.0,40612.0,0.00023945]
[1610218498783,3.33132608,40617.0,40614.0,0.00023945]
[1610218498982,3.33132608,40617.0,40613.0,0.00023945]
[1610218499385,3.33132608,40617.0,40615.0,0.00023945]
[1610218499584,3.33132608,40617.0,40614.0,0.00023945]
[1610218499783,3.33132608,40617.0,40616.0,0.00023945]
[1610218500184,3.33132608,40617.0,40612.0,0.00023945]
[1610218500384,3.33132608,40617.0,40616.0,0.00023945]
[1610218500584,3.33132608,40617.0,40613.0,0.00023946]
[1610218500784,0.13632608,40617.0,40613.0,0.00023946]
[1610218500984,4.21242608,40617.0,40616.0,0.00023946]
[1610218501186,4.21242608,40617.0,40614.0,0.00023946]
[1610218501383,4.21242608,40617.0,40612.0,0.00023946]
[1610218501785,4.21242608,40617.0,40615.0,0.00023946]
[1610218501986,4.21242608,40617.0,40613.0,0.00023948]
[1610218502185,4.21242608,40617.0,40616.0,0.00023948]
[1610218502584,4.21242608,40617.0,40614.0,0.00023948]
[1610218502786,4.21242608,40617.0,40616.0,0.0002395]
[1610218502986,4.21242608,40617.0,40615.0,0.0002395]
[1610218503187,4.21242608,40617.0,40616.0,0.0002395]
[1610218503586,4.21242608,40617.0,40612.0,0.0002395]
[1610218503789,4.21242608,40617.0,40616.0,0.0002395]
[1610218503987,4.21242608,40617.0,40613.0,0.00023952]
[1610218504390,4.21242608,40617.0,40612.0,0.00023952]
[1610218504591,4.21242608,40617.0,40614.0,0.00023952]
[1610218504790,4.21242608,40617.0,40613.0,0.00023952]
[1610218505190,4.21242608,40617.0,40611.0,0.11765]
[1610218505392,4.21242608,40617.0,40614.0,0.00023953]
[1610218505591,0.13632608,40617.0,40611.0,0.11765]
[1610218505991,0.13632608,40617.0,40609.0,3.3913]
[1610218506992,0.13632608,40617.0,40588.0,0.24414608]
[1610218507194,3.0313,40614.0,40595.0,3.5759]
[1610218507593,3.0313,40614.0,40598.0,0.00023953]
[1610218507795,3.0313,40614.0,40598.0,0.09623953]
[1610218507995,3.0313,40614.0,40598.0,0.096]
[1610218508395,3.0313,40614.0,40599.0,0.00023953]
[1610218509698,0.13632608,40600.0,40599.0,0.00023953]
[1610218526020,0.13632608,40600.0,40599.0,0.42413953]
[1610218526423,0.13632608,40600.0,40599.0,0.44321377]
[1610218529428,0.20503396,40617.0,40599.0,0.44321377]
[1610218529631,0.20503396,40617.0,40600.0,0.01931467]
[1610218529829,0.20503396,40617.0,40605.0,0.13632608]
[1610218530030,0.20503396,40617.0,40609.0,0.4928]
[1610218530431,0.20503396,40617.0,40610.0,0.00024258]
[1610218531831,0.13632608,40611.0,40610.0,0.00024258]
[1610218537638,4.0355,40610.0,40606.0,0.00024258]
[1610218537839,4.0355,40610.0,40605.0,0.13632608]
[1610218538040,4.0355,40610.0,40607.0,0.00024252]
[1610218538441,4.0355,40610.0,40606.0,0.00024252]
[1610218538641,4.0355,40610.0,40608.0,0.00024252]
[1610218538841,4.0355,40610.0,40607.0,0.00024252]
[1610218539241,4.0355,40610.0,40609.0,0.00024252]
[1610218539441,4.0355,40610.0,40608.0,0.00024252]
[1610218539642,4.0355,40610.0,40609.0,0.00024252]
[1610218539843,0.13632608,40611.0,40609.0,0.00024252]
[1610218540242,0.13632608,40611.0,40607.0,3.8324]
[1610218540442,0.13632608,40611.0,40610.0,0.00024252]
[1610218540846,0.13632608,40611.0,40608.0,0.00024252]
[1610218541046,0.13632608,40611.0,40610.0,0.00024252]
[1610218541246,0.13632608,40611.0,40609.0,0.00024252]
[1610218541445,0.13632608,40611.0,40610.0,0.00024252]
[1610218542046,0.13632608,40611.0,40608.0,0.00024252]
[1610218542246,0.13632608,40611.0,40610.0,0.00024252]
[1610218542646,0.13632608,40611.0,40608.0,0.00024252]
[1610218542847,0.13632608,40611.0,40610.0,0.00024253]
[1610218543047,0.13632608,40611.0,40608.0,0.00024253]
[1610218543247,0.55692608,40611.0,40608.0,0.00024253]
[1610218543447,0.55692608,40611.0,40610.0,0.00024253]
[1610218543648,0.55692608,40611.0,40609.0,0.00024253]
[1610218543847,0.55692608,40611.0,40610.0,0.00024253]
[1610218544448,0.55692608,40611.0,40608.0,0.00024253]
[1610218544648,0.55692608,40611.0,40610.0,0.00024253]
[1610218544849,0.55692608,40611.0,40609.0,0.00024253]
[1610218545249,0.55692608,40611.0,40608.0,0.00024253]
[1610218545450,0.55692608,40611.0,40610.0,0.00024253]
[1610218545849,0.55692608,40611.0,40609.0,0.00024253]
[1610218546049,0.55692608,40611.0,40610.0,0.00024253]
[1610218546450,0.55692608,40611.0,40608.0,0.00024253]
[1610218561778,0.13632608,40611.0,40608.0,0.00024253]
[1610218561974,0.13632608,40611.0,40610.0,3.2453]
[1610218562374,0.13632608,40611.0,40610.0,3.24554253]
[1610218571490,0.10751,40615.0,40610.0,3.24554253]
[1610218571691,0.20503396,40617.0,40610.0,0.00024253]
[1610218571889,0.20503396,40617.0,40614.0,3.608]
[1610218572090,0.20503396,40617.0,40616.0,0.13632608]
[1610218572690,0.20503396,40617.0,40616.0,0.13656855]
[1610218573492,0.20503396,40617.0,40616.0,0.15560626]
[1610218574191,0.20503396,40617.0,40616.0,0.23897626]
[1610218574695,0.20503396,40617.0,40616.0,0.21993855]
[1610218577597,0.20503396,40617.0,40616.0,3.30583855]
[1610218599726,0.20503396,40617.0,40616.0,3.32454319]
[1610218601327,0.20503396,40617.0,40616.0,3.30583855]
[1610218605631,0.20458022,40617.0,40616.0,3.30583855]
[1610218605831,0.20458022,40617.0,40616.0,3.32454457]
[1610218646780,0.20458022,40617.0,40616.0,3.36566294]
[1610218647182,0.20458022,40617.0,40616.0,3.32454457]
[1610218649884,0.20458022,40617.0,40616.0,0.23864457]
[1610218651286,0.20458022,40617.0,40616.0,0.10231849]
[1610218652487,0.3409063,40617.0,40616.0,0.10231849]
[1610218655892,0.3409063,40617.0,40616.0,0.08361247]
[1610218656092,3.5792063,40617.0,40616.0,0.08361247]
[1610218657294,0.3409063,40617.0,40616.0,0.08361247]
[1610218668109,0.3409063,40617.0,40616.0,0.00024247]
[1610218668713,0.3409063,40617.0,40614.0,3.6593]
[1610218668714,0.3409063,40617.0,40615.0,0.00024238]
[1610218669111,0.3409063,40617.0,40616.0,0.00024238]
[1610218669512,0.3409063,40617.0,40615.0,0.00024238]
[1610218669711,0.3409063,40617.0,40616.0,0.00024238]
[1610218670314,0.3409063,40617.0,40615.0,0.00024238]
[1610218670514,0.3409063,40617.0,40614.0,3.6593]
[1610218670515,0.3409063,40617.0,40616.0,0.00024238]
[1610218670918,0.3409063,40617.0,40615.0,0.00024238]
[1610218671116,0.3409063,40617.0,40616.0,0.00024238]
[1610218671618,0.3409063,40617.0,40615.0,0.00024238]
[1610218671816,0.3409063,40617.0,40616.0,0.00024238]
[1610218672417,0.3409063,40617.0,40615.0,0.00024236]
[1610218672616,0.3409063,40617.0,40616.0,0.13656844]
[1610218680729,0.3409063,40617.0,40616.0,0.00024236]
[1610218681130,0.3409063,40617.0,40615.0,0.00024239]
[1610218686938,3.5482,40616.0,40615.0,0.00024239]
[1610218687340,3.5482,40616.0,40611.0,0.019259]
[1610218687539,3.5482,40616.0,40615.0,0.00024239]
[1610218687740,3.5482,40616.0,40612.0,0.00024239]
[1610218688140,3.5482,40616.0,40615.0,0.00024239]
[1610218688340,0.3409063,40617.0,40612.0,3.0391]
[1610218688741,0.3409063,40617.0,40616.0,0.00024241]
[1610218688941,0.3409063,40617.0,40613.0,0.00024248]
[1610218689543,3.6469,40614.0,40613.0,0.00024248]
[1610218689743,3.6469,40614.0,40611.0,0.00024248]
[1610218689943,3.6469,40614.0,40613.0,0.0002425]
[1610218690143,3.6469,40614.0,40612.0,0.00024252]
[1610218690343,1.5,40613.0,40612.0,0.00024252]
[1610218690543,5.5119,40613.0,40611.0,0.00024254]
[1610218690744,5.5119,40613.0,40610.0,0.3]
[1610218690745,0.13632608,40612.0,40610.0,0.3]
[1610218690943,1.5,40611.0,40610.0,0.3]
[1610218691344,1.50030142,40611.0,40610.0,0.3]
[1610218691545,5.105765,40611.0,40610.0,0.3]
[1610218691744,11.105765,40611.0,40610.0,0.3]
[1610218691948,12.44082209,40611.0,40610.0,0.3]
[1610218692344,13.08982303,40611.0,40610.0,0.3]
[1610218692544,13.63183835,40611.0,40610.0,0.3]
[1610218692946,13.60497477,40611.0,40610.0,0.3]
[1610218695251,13.06295945,40611.0,40610.0,0.3]
[1610218695749,12.41395851,40611.0,40610.0,0.3]
[1610218695952,13.05474998,40611.0,40610.0,0.3]
[1610218696352,12.41395851,40611.0,40610.0,0.3]
[1610218696753,13.05372516,40611.0,40610.0,0.3]
[1610218697153,13.59581304,40611.0,40610.0,0.3]
[1610218697555,13.05372516,40611.0,40610.0,0.3]
[1610218697953,13.05372516,40611.0,40610.0,0.29849422]
[1610218698153,13.05342374,40611.0,40610.0,0.29849422]
[1610218698555,10.91395867,40611.0,40610.0,0.29849422]
[1610218699456,10.91365709,40611.0,40610.0,0.29849422]
[1610218699655,10.02125176,40611.0,40610.0,0.29849422]
[1610218699856,4.02155333,40611.0,40610.0,0.29849422]
[1610218700255,4.02125176,40611.0,40610.0,0.29849422]
[1610218701055,3.59325007,40611.0,40610.0,0.29849422]
[1610218701256,3.58600087,40611.0,40610.0,0.29849422]
[1610218701856,3.58630241,40611.0,40610.0,0.29849422]
[1610218702859,3.57890154,40611.0,40610.0,0.29849422]
[1610218703057,3.5786,40611.0,40610.0,0.29849422]
[1610218705460,0.13632608,40612.0,40610.0,0.29849422]
[1610218705660,3.61082608,40612.0,40610.0,0.29849422]
[1610218706862,0.00030149,40611.0,40610.0,0.29849422]
[1610218708464,3.61082608,40612.0,40610.0,0.29849422]
[1610218711767,0.13632608,40612.0,40610.0,0.29849422]
[1610218711967,4.0635,40611.0,40610.0,0.29849422]
[1610218714776,4.06380146,40611.0,40610.0,0.29849422]
[1610218716678,0.00030146,40611.0,40610.0,0.29849422]
[1610218717978,3.86450146,40611.0,40610.0,0.29849422]
[1610218718778,3.89144481,40611.0,40610.0,0.29849422]
[1610218719181,0.02724481,40611.0,40610.0,0.29849422]
[1610218719781,0.00030146,40611.0,40610.0,0.29849422]
[1610218732692,0.02724341,40611.0,40610.0,0.29849422]
[1610218734292,0.00030146,40611.0,40610.0,0.29849422]
[1610218736994,0.02724326,40611.0,40610.0,0.29849422]
[1610218737796,0.13632608,40611.0,40610.0,0.29849422]
[1610218737997,0.16356929,40611.0,40610.0,0.29849422]
[1610218738197,0.16356929,40611.0,40610.0,0.80829422]
[1610218738597,0.13662751,40611.0,40610.0,0.80829422]
[1610218739599,0.13662751,40611.0,40610.0,0.80853658]
[1610218742301,0.13632608,40611.0,40610.0,0.80853658]
[1610218752208,0.13632608,40611.0,40610.0,0.80829422]
[1610218763019,0.13632608,40611.0,40610.0,0.80853604]
[1610218829003,0.13632608,40611.0,40610.0,0.82742279]
[1610218853133,0.13632608,40611.0,40610.0,0.31762279]
[1610218853734,0.13632608,40611.0,40610.0,3.87792279]
[1610218859941,0.20458022,40617.0,40610.0,3.87792279]
[1610218860341,0.20458022,40617.0,40611.0,0.01911604]
[1610218860541,0.20458022,40617.0,40616.0,0.13632608]
[1610218860742,0.20458022,40617.0,40616.0,0.58702608]
[1610218860941,0.20458022,40617.0,40616.0,0.58726801]
[1610218865050,0.20458022,40617.0,40616.0,0.60614103]
[1610218865651,0.20458022,40617.0,40616.0,0.58726801]
[1610218868055,0.20458022,40617.0,40616.0,0.45094193]
[1610218868454,0.3409063,40617.0,40616.0,0.45094193]
[1610218870456,0.3409063,40617.0,40616.0,0.58726801]
[1610218871257,0.3409063,40617.0,40616.0,0.45094193]
[1610218876264,0.3409063,40617.0,40616.0,0.00024193]
[1610218876667,0.3409063,40617.0,40613.0,3.1199]
[1610218876864,0.3409063,40617.0,40616.0,0.00024217]
[1610218877265,0.3409063,40617.0,40614.0,0.00024217]
[1610218877466,0.3409063,40617.0,40616.0,0.00024217]
[1610218877768,0.3409063,40617.0,40615.0,0.00024217]
[1610218877968,0.3409063,40617.0,40616.0,0.00024217]
[1610218878368,0.3409063,40617.0,40614.0,0.00024217]
[1610218878568,0.3409063,40617.0,40616.0,0.00024217]
[1610218878766,0.3409063,40617.0,40615.0,0.00024217]
[1610218879066,0.3409063,40617.0,40614.0,0.00024217]
[1610218879268,0.3409063,40617.0,40616.0,0.00024217]
[1610218879569,0.3409063,40617.0,40614.0,0.00024217]
[1610218879969,0.3409063,40617.0,40616.0,0.00024217]
[1610218880169,0.3409063,40617.0,40615.0,0.00024217]
[1610218880371,0.3409063,40617.0,40616.0,0.00024217]
[1610218880970,0.3409063,40617.0,40614.0,0.00024217]
[1610218881170,0.3409063,40617.0,40616.0,0.00024217]
[1610218881370,0.3409063,40617.0,40615.0,0.00024217]
[1610218881672,0.3409063,40617.0,40614.0,0.00024217]
[1610218882072,0.3409063,40617.0,40616.0,0.00024217]
[1610218882273,0.3409063,40617.0,40615.0,0.00024217]
[1610218882474,0.3409063,40617.0,40614.0,0.00024217]
[1610218882674,0.3409063,40617.0,40616.0,0.00024217]
[1610218883073,0.3409063,40617.0,40615.0,0.00024217]
[1610218883274,0.3409063,40617.0,40616.0,0.00024217]
[1610218883775,0.3409063,40617.0,40614.0,0.00024217]
[1610218884176,0.3409063,40617.0,40616.0,0.00024217]
[1610218884378,0.3409063,40617.0,40615.0,0.00024217]
[1610218884577,0.3409063,40617.0,40616.0,0.00024217]
[1610218885177,0.3409063,40617.0,40614.0,0.00024219]
[1610218885379,1.5,40615.0,40610.0,0.29849422]
[1610218885777,3.898,40611.0,40610.0,0.29849422]
[1610218886378,3.89830135,40611.0,40610.0,0.29849422]
[1610218886579,4.03462743,40611.0,40610.0,0.29849422]
[1610218890485,4.03432608,40611.0,40610.0,0.29849422]
[1610218890883,4.03462747,40611.0,40610.0,0.29849422]
[1610218892385,4.14960747,40611.0,40610.0,0.29849422]
[1610218892990,5.64960747,40611.0,40610.0,0.29849422]
[1610218893585,6.09538596,40611.0,40610.0,0.29849422]
[1610218893786,6.9913671,40611.0,40610.0,0.29849422]
[1610218893987,7.9913671,40611.0,40610.0,0.29849422]
[1610218896488,7.09538596,40611.0,40610.0,0.29849422]
[1610218896889,7.99031776,40611.0,40610.0,0.29849422]
[1610218897691,7.09538596,40611.0,40610.0,0.29849422]
[1610218897892,7.09538596,40611.0,40568.0,0.08426]
[1610218898092,3.8971,40569.0,40540.0,3.157]
[1610218898293,0.08691,40577.0,40542.0,0.00024245]
[1610218898492,0.08691,40577.0,40542.0,0.10019245]
[1610218898692,3.83882608,40543.0,40542.0,0.10019245]
[1610218898892,3.83882608,40543.0,40542.0,0.09995]
[1610218899492,3.83882608,40543.0,40518.0,2.53651942]
[1610218899693,0.13632608,40543.0,40510.0,2.53315101]
[1610218899892,3.8099,40519.0,40504.0,2.68215989]
[1610218900094,3.8099,40519.0,40498.0,2.53410668]
[1610218900095,2.63632608,40543.0,40511.0,0.00024262]
[1610218900292,1.57591,40537.0,40511.0,0.00024262]
[1610218900495,1.57591,40537.0,40509.0,0.08835]
[1610218900496,4.1277,40512.0,40509.0,0.08835]
[1610218900691,0.089,40525.0,40509.0,0.08835]
[1610218900895,0.13632608,40510.0,40509.0,0.08835]
[1610218901092,4.06512608,40510.0,40509.0,0.08835]
[1610218901494,4.14369608,40510.0,40469.0,3.547]
[1610218901693,0.21489608,40510.0,40457.0,2.6789052]
[1610218902095,0.21489608,40510.0,40447.0,3.8125]
[1610218902493,0.00030214,40509.0,40429.0,2.51535845]
[1610218902894,0.13632608,40501.0,40422.0,0.13632608]
[1610218903294,0.22136834,40501.0,40434.0,2.9792]
[1610218903496,0.22136834,40501.0,40500.0,0.0776]
[1610218903694,0.22136834,40501.0,40500.0,0.07609067]
[1610218903893,6.22136834,40501.0,40500.0,0.07609067]
[1610218905897,0.22136834,40501.0,40500.0,0.07609067]
[1610218907797,0.22106608,40501.0,40500.0,0.07609067]
[1610218908197,0.13632608,40501.0,40500.0,0.07609067]
[1610218911104,0.13662822,40501.0,40500.0,0.07609067]
[1610218911507,0.25197822,40501.0,40500.0,0.07609067]
[1610218916008,1.25197822,40501.0,40500.0,0.07609067]
[1610218916210,1.27900804,40501.0,40500.0,0.07609067]
[1610218917911,0.27900804,40501.0,40500.0,0.07609067]
[1610218921713,4.35890804,40501.0,40500.0,0.07609067]
[1610218922113,4.41935848,40501.0,40500.0,0.07609067]
[1610218922312,0.33945848,40501.0,40500.0,0.07609067]
[1610218922715,0.27900804,40501.0,40500.0,0.07609067]
[1610218923919,0.16365804,40501.0,40500.0,0.07609067]
[1610218924316,0.13632608,40501.0,40500.0,0.07609067]
[1610218940831,0.13632608,40501.0,40500.0,3.27249067]
[1610218941032,0.13632608,40501.0,40500.0,3.40881675]
[1610218942033,0.13632608,40501.0,40500.0,0.21241675]
[1610218942232,0.13632608,40501.0,40500.0,0.07609067]
[1610218951645,3.9907,40523.0,40500.0,0.07609067]
[1610218951848,0.2835,40536.0,40500.0,0.07609067]
[1610218952246,0.02910996,40524.0,40500.0,0.07609067]
[1610218952448,0.02880796,40524.0,40500.0,0.07609067]
[1610218952646,0.02910957,40535.0,40500.0,0.07609067]
[1610218953047,0.02910957,40535.0,40509.0,0.13632608]
[1610218955150,0.13632608,40510.0,40509.0,0.13632608]
[1610218955651,0.13632608,40510.0,40509.0,0.13656246]
[1610218958354,0.13632608,40510.0,40509.0,0.00023638]
[1610218958854,0.13632608,40510.0,40507.0,0.00023638]
[1610218959155,0.13632608,40510.0,40509.0,0.00023638]
[1610218959354,0.13632608,40510.0,40507.0,0.00023638]
[1610218959755,0.13632608,40510.0,40509.0,0.00023638]
[1610218959957,0.13632608,40510.0,40508.0,0.00023638]
[1610218960175,0.13632608,40510.0,40509.0,0.00023638]
[1610218960357,0.13632608,40510.0,40506.0,0.10197]
[1610218960658,0.13632608,40510.0,40500.0,0.07609067]
[1610218960856,0.13632608,40510.0,40507.0,0.00023639]
[1610218961056,0.13632608,40510.0,40502.0,0.11454]
[1610218961257,0.13632608,40510.0,40508.0,0.00023641]
[1610218961457,0.67372608,40510.0,40503.0,0.00023641]